fUSD/lending_fUSD_20251030
["ID","MTS","AMOUNT","RATE_DAILY","PERIOD"]
[392689938,1761814232964,-500.0,0.00014979,2]
[392689939,1761814232974,-523.47855214,0.00014979,2]
[392689940,1761814232985,-500.0,0.00014979,2]
[392689941,1761814232995,-500.0,0.00014979,2]
[392689942,1761814233004,-500.0,0.00014979,2]
[392689943,1761814233014,-500.0,0.00014979,2]
[392689944,1761814233024,-288.25603492,0.00014979,2]
[392689945,1761814233033,-279.88284405,0.00014979,2]
[392689946,1761814233043,-232.32231663,0.00014979,2]
[392689947,1761814233052,-216.1047315,0.00014979,2]
[392689948,1761814233062,-956.28,0.00014979,2]
[392689949,1761814233071,-1228.61,0.00014979,2]
[392689950,1761814233080,-1228.61,0.00014979,2]
[392689951,1761814233090,-1228.61,0.00014979,2]
[392689952,1761814233099,-1228.61,0.00014979,2]
[392689953,1761814233109,-154.48390391,0.00014979,2]
[392689954,1761814233118,-515.25204853,0.00014979,2]
[392689955,1761814233127,-230.89947566,0.00014979,2]
[392689956,1761814233137,-1603.0,0.0001498,2]
[392689957,1761814233149,-75655.20907076,0.0001498,2]
[392689958,1761814233161,-530.77777805,0.0001498,2]
[392689959,1761814233181,-23400.66158989,0.0001498,2]
[392689965,1761814238523,-418.57964703,0.0001498,2]
[392689966,1761814238538,-2121.81240877,0.0001498,2]
[392689967,1761814238553,-3934.77586,0.0001498,2]
[392690059,1761814241037,-112433.85465689,0.0001498,2]
[392690060,1761814241061,-614.06249963,0.0001498,2]
[392690066,1761814243316,-245.24208059,0.0001498,2]
[392690157,1761814668790,152.68,7.036e-05,2]
[392690158,1761814669012,152.68,7.427e-05,2]
[392690159,1761814669433,152.68,7.818e-05,2]
[392690160,1761814669673,152.68,8.209e-05,2]
[392690161,1761814669889,152.68,8.6e-05,2]
[392690162,1761814670083,152.68,8.99e-05,2]
[392690163,1761814670280,152.68,9.381e-05,2]
[392690164,1761814670480,152.68,9.772e-05,2]
[392690165,1761814670684,152.68,0.00010163,2]
[392690166,1761814670877,152.68,0.00010554,2]
[392690167,1761814671071,152.68,0.00010945,2]
[392690168,1761814671273,152.68,0.00011336,2]
[392690169,1761814671705,152.68,0.00011727,2]
[392690170,1761814671951,152.68,0.00012117,2]
[392690171,1761814672153,152.68,0.00012508,2]
[392690172,1761814672351,152.68,0.00012899,2]
[392690173,1761814672551,152.68,0.0001329,2]
[392690176,1761814753683,4998128.98625747,0.00031507,120]
[392690197,1761815107345,150.0,0.00013488,2]
[392690334,1761815251935,165.13659876,0.00013,2]
[392690400,1761815431438,-152.68,0.00013681,2]
[392690402,1761815431448,-164.01,0.00013931,2]
[392690404,1761815431457,-228.99,0.00013952,2]
[392690406,1761815431467,-300.0,0.00014016,2]
[392690408,1761815431477,-177.43758796,0.00014016,2]
[392690411,1761815431491,-122.56241204,0.00014016,2]
[392690413,1761815431500,-1200.0,0.00014016,2]
[392690415,1761815431510,-1065.65518126,0.00014017,2]
[392690417,1761815431545,-8637.71116931,0.00014017,2]
[392690418,1761815431757,-11634.77164738,0.00014017,2]
[392690428,1761815439771,-1225.00000087,0.00014017,2]
[392690463,1761815442558,-377.72200118,0.00014017,2]
[392690464,1761815442568,-248.40197285,0.00014032,2]
[392690470,1761815445648,-2825.94802715,0.00014032,2]
[392690471,1761815445659,-150.0,0.00014069,2]
[392690472,1761815445669,-152.68,0.00014072,2]
[392690473,1761815445679,-200.0,0.00014142,2]
[392690474,1761815445688,-166.67,0.00014419,2]
[392690475,1761815445698,-221.58363863,0.00014619,2]
[392690476,1761815445707,-168.0,0.0001462,2]
[392690477,1761815445717,-150.67,0.000147,2]
[392690478,1761815445726,-150.0,0.000147,2]
[392690479,1761815445735,-469.68761182,0.00014761,2]
[392690480,1761815445745,-168.0,0.00014778,2]
[392690481,1761815445754,-150.0,0.000148,2]
[392690482,1761815445764,-150.0,0.000148,2]
[392690483,1761815445777,-519.67023,0.0001483,2]
[392690484,1761815445787,-3493.0,0.00014838,2]
[392690485,1761815445797,-1958.0904924,0.00014838,2]
[392690511,1761816224935,157.37649512,0.00015,30]
[392690512,1761816339246,194.5754208,0.000155,3]
[392690518,1761816386355,183.1552775,0.000155,3]
[392690549,1761816604734,150.0,0.00013956,120]
[392690587,1761816631793,-150.0,0.00013956,2]
[392690588,1761816631802,-300.0,0.00013998,2]
[392690589,1761816631811,-300.0,0.00013998,2]
[392690590,1761816631820,-1200.0,0.00013998,2]
[392690591,1761816631829,-150.0,0.00013998,2]
[392690592,1761816631839,-546.1551568,0.00013999,2]
[392690593,1761816631955,-362.14760184,0.00013999,2]
[392690595,1761816631964,-500.0,0.00013999,2]
[392690597,1761816631974,-500.0,0.00013999,2]
[392690599,1761816631984,-565.37862135,0.00013999,2]
[392690601,1761816631993,-500.0,0.00013999,2]
[392690602,1761816632004,-500.0,0.00013999,2]
[392690603,1761816632013,-500.0,0.00013999,2]
[392690604,1761816632022,-500.0,0.00013999,2]
[392690605,1761816632032,-552.02104109,0.00013999,2]
[392690606,1761816632041,-567.18868128,0.00013999,2]
[392690607,1761816632050,-500.0,0.00013999,2]
[392690608,1761816632060,-499.99999999,0.00013999,2]
[392690610,1761816632069,-500.0,0.00013999,2]
[392690612,1761816632078,-500.0,0.00013999,2]
[392690614,1761816632088,-500.0,0.00013999,2]
[392690615,1761816632097,-250.0,0.00014,2]
[392690617,1761816632106,-31183.59959438,0.00014,2]
[392690741,1761816637829,-14741.06797448,0.00014,2]
[392690742,1761816637841,-3159.00807002,0.00014,2]
[392690743,1761816637852,-252.12060708,0.00014,2]
[392690744,1761816637865,-1049.56010678,0.00014,2]
[392690825,1761816640006,-4875.47058243,0.00014,2]
[392690826,1761816640017,-202.86,0.0001403,2]
[392690827,1761816640026,-1000.0,0.0001409,2]
[392690828,1761816640035,-168.0,0.0001468,2]
[392690829,1761816640045,-433.05852,0.0001469,2]
[392690830,1761816640055,-221.58363863,0.00014745,2]
[392690831,1761816640064,-221.54267052,0.0001477,2]
[392690832,1761816640075,-1023.84,0.00014869,2]
[392690833,1761816640084,-360.67643397,0.00014869,2]
[392690834,1761816640094,-161.62963296,0.00014869,2]
[392690835,1761816640103,-3585.6824401,0.0001487,2]
[392690836,1761816640112,-12904.4534835,0.0001487,2]
[392690837,1761816640123,-25367.5879714,0.0001487,2]
[392690838,1761816640132,-234554.0784169,0.0001487,2]
[392690839,1761816640141,-3197.9358555,0.0001487,2]
[392690840,1761816640152,-3293.4288218,0.0001487,2]
[392690841,1761816640161,-46781.3378056,0.0001487,2]
[392690842,1761816640171,-1976.0671971,0.0001487,2]
[392690843,1761816640184,-503.0,0.00014877,2]
[392690844,1761816640194,-1535.1998,0.0001488,2]
[392690845,1761816640204,-151.0,0.0001488,2]
[392690846,1761816640214,-151.0,0.0001488,2]
[392690848,1761816640223,-220.015645,0.0001488,2]
[392690850,1761816640232,-156.364243,0.0001488,2]
[392690851,1761816640242,-296.852913,0.0001488,2]
[392690852,1761816640251,-154.40261,0.0001488,2]
[392690853,1761816640261,-249.14134,0.0001488,2]
[392690854,1761816640270,-394.29949787,0.000149,2]
[392690855,1761816640280,-221.54267051,0.000149,2]
[392690856,1761816640289,-657.844,0.00014925,2]
[392690858,1761816640298,-151.0,0.00014925,2]
[392690860,1761816640307,-151.0,0.00014925,2]
[392690861,1761816640318,-151.0,0.00014925,2]
[392690862,1761816640328,-151.0,0.00014925,2]
[392690864,1761816640337,-151.0,0.00014925,2]
[392690865,1761816640346,-151.0,0.00014925,2]
[392690866,1761816640355,-162.615979,0.00014925,2]
[392690867,1761816640364,-151.0,0.00014925,2]
[392690868,1761816640373,-151.0,0.00014925,2]
[392690869,1761816640382,-151.0,0.00014925,2]
[392690870,1761816640391,-224.466721,0.00014925,2]
[392690871,1761816640400,-151.0,0.00014925,2]
[392690872,1761816640409,-156.41092,0.00014925,2]
[392690873,1761816640418,-151.0,0.00014925,2]
[392690874,1761816640427,-156.302069,0.00014925,2]
[392690875,1761816640436,-151.0,0.00014925,2]
[392690876,1761816640451,-156.311484,0.00014925,2]
[392690877,1761816640461,-151.0,0.00014925,2]
[392690878,1761816640470,-151.0,0.00014925,2]
[392690879,1761816640479,-151.0,0.00014925,2]
[392690880,1761816640487,-192.208689,0.00014925,2]
[392690881,1761816640496,-151.0,0.00014925,2]
[392690882,1761816640505,-151.0,0.00014925,2]
[392690883,1761816640514,-155.858151,0.00014925,2]
[392690884,1761816640523,-151.0,0.00014925,2]
[392690885,1761816640532,-151.0,0.00014925,2]
[392690886,1761816640541,-151.0,0.00014925,2]
[392690887,1761816640550,-151.0,0.00014925,2]
[392690888,1761816640559,-156.067047,0.00014925,2]
[392690889,1761816640568,-151.0,0.00014925,2]
[392690890,1761816640577,-151.0,0.00014925,2]
[392690891,1761816640587,-151.0,0.00014925,2]
[392690892,1761816640596,-168.0,0.0001494,2]
[392690893,1761816640606,-151.0,0.0001496,2]
[392690894,1761816640615,-151.0,0.00014972,2]
[392690895,1761816640624,-500.0,0.00014973,2]
[392690896,1761816640634,-221.42646136,0.00014973,2]
[392690897,1761816640643,-1314.0,0.00014973,2]
[392690898,1761816640654,-1594.0,0.00014973,2]
[392690899,1761816640663,-819.0,0.00014973,2]
[392690900,1761816640672,-1271.0,0.00014973,2]
[392690901,1761816640681,-904.0,0.00014973,2]
[392690902,1761816640690,-1187.0,0.00014973,2]
[392690903,1761816640700,-820.0,0.00014973,2]
[392690904,1761816640708,-3419.0,0.00014973,2]
[392690905,1761816640717,-573.0,0.00014973,2]
[392690906,1761816640726,-3493.0,0.00014973,2]
[392690907,1761816640734,-155.0,0.00014978,2]
[392690908,1761816640743,-500.0,0.00014979,2]
[392690909,1761816640752,-500.0,0.00014979,2]
[392690910,1761816640761,-514.28691293,0.00014979,2]
[392690911,1761816640770,-155.0,0.00014979,2]
[392690912,1761816640779,-500.0,0.00014979,2]
[392690913,1761816640788,-500.0,0.00014979,2]
[392690914,1761816640796,-500.0,0.00014979,2]
[392690915,1761816640805,-500.0,0.00014979,2]
[392690916,1761816640814,-500.0,0.00014979,2]
[392690917,1761816640824,-1023.84,0.00014979,2]
[392690918,1761816640833,-1023.84,0.00014979,2]
[392690919,1761816640843,-1023.84,0.00014979,2]
[392690920,1761816640852,-1692.0,0.0001498,2]
[392690921,1761816640861,-651976.80983255,0.0001498,2]
[392690922,1761816640871,-500.0,0.0001498,2]
[392690923,1761816640880,-861.22399573,0.0001498,2]
[392690924,1761816640890,-237.66630996,0.0001498,2]
[392690925,1761816640900,-506.07683804,0.0001498,2]
[392690926,1761816640909,-258.321945,0.0001498,2]
[392690927,1761816640918,-151.0,0.0001498,2]
[392690928,1761816640927,-151.0,0.0001498,2]
[392690929,1761816640936,-154.831578,0.0001498,2]
[392690930,1761816640945,-156.724935,0.0001498,2]
[392690931,1761816640955,-151.0,0.0001498,2]
[392690932,1761816640964,-151.000002,0.0001498,2]
[392690933,1761816640974,-151.0,0.0001498,2]
[392690934,1761816640983,-151.0,0.0001498,2]
[392690935,1761816640992,-151.0,0.0001498,2]
[392690936,1761816641001,-151.0,0.0001498,2]
[392690937,1761816641010,-151.0,0.0001498,2]
[392690938,1761816641019,-151.0,0.0001498,2]
[392690939,1761816641028,-151.0,0.0001498,2]
[392690940,1761816641037,-151.0,0.0001498,2]
[392690941,1761816641046,-151.0,0.0001498,2]
[392690942,1761816641056,-256.816905,0.0001498,2]
[392690943,1761816641067,-151.0,0.0001498,2]
[392690944,1761816641076,-151.0,0.0001498,2]
[392690945,1761816641087,-180.035784,0.0001498,2]
[392690946,1761816641096,-180.035784,0.0001498,2]
[392690947,1761816641105,-180.035784,0.0001498,2]
[392690948,1761816641114,-180.035784,0.0001498,2]
[392690949,1761816641127,-156.644389,0.0001498,2]
[392690950,1761816641141,-151.0,0.0001498,2]
[392690951,1761816641154,-151.0,0.0001498,2]
[392690952,1761816641167,-151.0,0.0001498,2]
[392690953,1761816641178,-836.74,0.0001498,2]
[392690954,1761816641189,-151.0,0.0001498,2]
[392690955,1761816641201,-151.0,0.0001498,2]
[392690956,1761816641213,-154.2199,0.0001498,2]
[392690957,1761816641225,-157.382498,0.0001498,2]
[392690958,1761816641236,-151.0,0.0001498,2]
[392690959,1761816641248,-156.202082,0.0001498,2]
[392690960,1761816641260,-151.0,0.0001498,2]
[392690961,1761816641273,-158.376504,0.0001498,2]
[392690962,1761816641285,-156.923785,0.0001498,2]
[392690963,1761816641296,-151.0,0.0001498,2]
[392690964,1761816641309,-151.0,0.0001498,2]
[392690965,1761816641319,-167.685002,0.0001498,2]
[392690966,1761816641329,-161.471215,0.0001498,2]
[392690967,1761816641342,-151.0,0.0001498,2]
[392690968,1761816641354,-151.0,0.0001498,2]
[392690969,1761816641366,-151.0,0.0001498,2]
[392690970,1761816641377,-151.0,0.0001498,2]
[392690971,1761816641389,-24524.16003657,0.0001498,2]
[392690972,1761816641400,-153.455222,0.0001498,2]
[392690973,1761816641411,-151.0,0.0001498,2]
[392690974,1761816641423,-151.0,0.0001498,2]
[392690975,1761816641434,-151.0,0.0001498,2]
[392690976,1761816641449,-151.0,0.0001498,2]
[392690977,1761816641460,-151.0,0.0001498,2]
[392690978,1761816641471,-151.0,0.0001498,2]
[392690979,1761816641483,-151.0,0.0001498,2]
[392690980,1761816641498,-196.788407,0.0001498,2]
[392690981,1761816641511,-151.877216,0.0001498,2]
[392690982,1761816641527,-152.595001,0.0001498,2]
[392690983,1761816641538,-151.0,0.0001498,2]
[392690984,1761816641550,-151.0,0.0001498,2]
[392690985,1761816641561,-151.0,0.0001498,2]
[392690986,1761816641572,-151.0,0.0001498,2]
[392690987,1761816641584,-151.0,0.0001498,2]
[392690988,1761816641597,-151.0,0.0001498,2]
[392690989,1761816641609,-151.0,0.0001498,2]
[392690990,1761816641622,-151.0,0.0001498,2]
[392690991,1761816641635,-151.0,0.0001498,2]
[392690992,1761816641646,-151.0,0.0001498,2]
[392690993,1761816641658,-151.0,0.0001498,2]
[392690994,1761816641671,-151.0,0.0001498,2]
[392690995,1761816641682,-159.317874,0.0001498,2]
[392690996,1761816641692,-151.0,0.0001498,2]
[392690997,1761816641702,-151.0,0.0001498,2]
[392690998,1761816641713,-168.783382,0.0001498,2]
[392690999,1761816641724,-186.413002,0.0001498,2]
[392691000,1761816641738,-151.0,0.0001498,2]
[392691001,1761816641751,-151.0,0.0001498,2]
[392691002,1761816641761,-151.0,0.0001498,2]
[392691003,1761816641771,-151.0,0.0001498,2]
[392691004,1761816641782,-158.941937,0.0001498,2]
[392691005,1761816641792,-151.0,0.0001498,2]
[392691006,1761816641803,-249.519273,0.0001498,2]
[392691007,1761816641815,-152.282139,0.0001498,2]
[392691008,1761816641827,-151.0,0.0001498,2]
[392691009,1761816641838,-151.0,0.0001498,2]
[392691010,1761816641848,-193.535479,0.0001498,2]
[392691011,1761816641859,-151.0,0.0001498,2]
[392691012,1761816641869,-197.965227,0.0001498,2]
[392691013,1761816641880,-151.0,0.0001498,2]
[392691014,1761816641892,-151.0,0.0001498,2]
[392691015,1761816641904,-153.258027,0.0001498,2]
[392691016,1761816641919,-151.0,0.0001498,2]
[392691017,1761816641930,-151.0,0.0001498,2]
[392691018,1761816641941,-151.0,0.0001498,2]
[392691019,1761816641954,-151.0,0.0001498,2]
[392691020,1761816641966,-151.0,0.0001498,2]
[392691021,1761816641977,-1062.0016798,0.00014982,2]
[392691022,1761816641999,-462.42648045,0.00014985,2]
[392691023,1761816642011,-151.0,0.00014986,2]
[392691024,1761816642023,-3089.0,0.00014987,2]
[392691025,1761816642035,-175.85726462,0.00014989,2]
[392691026,1761816642047,-500.0,0.0001499,2]
[392691027,1761816642058,-500.0,0.0001499,2]
[392691028,1761816642070,-500.0,0.0001499,2]
[392691029,1761816642082,-500.0,0.0001499,2]
[392691030,1761816642093,-500.0,0.0001499,2]
[392691031,1761816642104,-500.0,0.0001499,2]
[392691032,1761816642115,-500.0,0.0001499,2]
[392691033,1761816642126,-175.85726462,0.0001499,2]
[392691034,1761816642138,-5167.50527036,0.00014991,2]
[392691035,1761816642149,-151.0,0.00014991,2]
[392691036,1761816642160,-151.0,0.00014991,2]
[392691037,1761816642172,-500.0,0.00014998,2]
[392691038,1761816642182,-151.0,0.00014998,2]
[392691039,1761816642193,-151.0,0.00014998,2]
[392691040,1761816642204,-152.802228,0.00014998,2]
[392691041,1761816642215,-151.0,0.00014998,2]
[392691042,1761816642226,-151.0,0.00014998,2]
[392691043,1761816642238,-151.0,0.00014998,2]
[392691044,1761816642249,-151.0,0.00014998,2]
[392691045,1761816642260,-151.0,0.00014998,2]
[392691046,1761816642271,-151.0,0.00014998,2]
[392691047,1761816642282,-151.0,0.00014998,2]
[392691048,1761816642297,-151.0,0.00014998,2]
[392691049,1761816642308,-151.0,0.00014998,2]
[392691050,1761816642319,-151.0,0.00014998,2]
[392691051,1761816642330,-151.0,0.00014998,2]
[392691052,1761816642343,-500.0,0.00014998,2]
[392691053,1761816642354,-151.0,0.00014998,2]
[392691054,1761816642365,-281.695591,0.00014998,2]
[392691055,1761816642377,-151.0,0.00014998,2]
[392691057,1761816642388,-151.0,0.00014998,2]
[392691060,1761816642399,-151.0,0.00014998,2]
[392691062,1761816642410,-1023.84,0.00014998,2]
[392691064,1761816642421,-151.0,0.00014998,2]
[392691066,1761816642431,-157.583186,0.00014998,2]
[392691068,1761816642444,-151.0,0.00014998,2]
[392691071,1761816642456,-151.0,0.00014998,2]
[392691073,1761816642467,-155.33016,0.00014998,2]
[392691075,1761816642478,-500.0,0.00014998,2]
[392691077,1761816642488,-500.0,0.00014998,2]
[392691080,1761816642499,-500.0,0.00014998,2]
[392691082,1761816642510,-500.0,0.00014998,2]
[392691084,1761816642521,-500.0,0.00014998,2]
[392691086,1761816642532,-500.0,0.00014998,2]
[392691088,1761816642542,-500.0,0.00014998,2]
[392691091,1761816642553,-500.0,0.00014998,2]
[392691093,1761816642564,-500.0,0.00014998,2]
[392691095,1761816642575,-500.0,0.00014998,2]
[392691097,1761816642586,-500.0,0.00014998,2]
[392691099,1761816642598,-500.0,0.00014999,2]
[392691104,1761816642609,-410.5932252,0.00014999,2]
[392691106,1761816642620,-526.1070415,0.00014999,2]
[392691108,1761816642632,-1002.6795,0.00014999,2]
[392691110,1761816642643,-500.0,0.00014999,2]
[392691112,1761816642656,-500.0,0.00014999,2]
[392691115,1761816642667,-250000.0,0.00014999,2]
[392691117,1761816642679,-1029.8585,0.00014999,2]
[392691118,1761816642689,-1028.3742,0.00014999,2]
[392691119,1761816642700,-500.0,0.00014999,2]
[392691120,1761816642711,-241.574688,0.00014999,2]
[392691121,1761816642723,-151.0,0.00014999,2]
[392691122,1761816642734,-151.0,0.00014999,2]
[392691123,1761816642745,-151.0,0.00014999,2]
[392691124,1761816642755,-151.0,0.00014999,2]
[392691125,1761816642766,-157.055689,0.00014999,2]
[392691126,1761816642776,-151.0,0.00014999,2]
[392691127,1761816642787,-151.0,0.00014999,2]
[392691128,1761816642797,-154.702919,0.00014999,2]
[392691129,1761816642808,-151.0,0.00014999,2]
[392691130,1761816642820,-151.0,0.00014999,2]
[392691131,1761816642831,-151.0,0.00014999,2]
[392691132,1761816642842,-151.0,0.00014999,2]
[392691133,1761816642853,-151.000005,0.00014999,2]
[392691134,1761816642864,-162.577898,0.00014999,2]
[392691135,1761816642874,-172.185401,0.00014999,2]
[392691136,1761816642885,-151.0,0.00014999,2]
[392691137,1761816642897,-151.0,0.00014999,2]
[392691138,1761816642907,-151.0,0.00014999,2]
[392691139,1761816642919,-213.369757,0.00014999,2]
[392691140,1761816642930,-156.080826,0.00014999,2]
[392691141,1761816642941,-170.946405,0.00014999,2]
[392691142,1761816642952,-157.875105,0.00014999,2]
[392691143,1761816642962,-151.0,0.00014999,2]
[392691144,1761816642973,-151.0,0.00014999,2]
[392691145,1761816642983,-151.0,0.00014999,2]
[392691146,1761816642995,-197.404798,0.00014999,2]
[392691147,1761816643006,-151.0,0.00014999,2]
[392691148,1761816643017,-151.0,0.00014999,2]
[392691149,1761816643027,-158.918597,0.00014999,2]
[392691150,1761816643038,-151.0,0.00014999,2]
[392691151,1761816643049,-151.0,0.00014999,2]
[392691152,1761816643060,-159.037364,0.00014999,2]
[392691153,1761816643070,-180.035784,0.00014999,2]
[392691154,1761816643082,-180.035784,0.00014999,2]
[392691155,1761816643093,-180.035784,0.00014999,2]
[392691156,1761816643104,-180.035784,0.00014999,2]
[392691157,1761816643114,-211.065204,0.00014999,2]
[392691158,1761816643125,-151.0,0.00014999,2]
[392691159,1761816643136,-151.0,0.00014999,2]
[392691160,1761816643147,-151.0,0.00014999,2]
[392691161,1761816643157,-156.911791,0.00014999,2]
[392691162,1761816643167,-160.77022,0.00014999,2]
[392691163,1761816643178,-151.0,0.00014999,2]
[392691164,1761816643190,-151.0,0.00014999,2]
[392691165,1761816643201,-154.067118,0.00014999,2]
[392691166,1761816643212,-170.158429,0.00014999,2]
[392691167,1761816643223,-151.0,0.00014999,2]
[392691168,1761816643234,-151.0,0.00014999,2]
[392691169,1761816643245,-151.0,0.00014999,2]
[392691170,1761816643255,-228.615674,0.00014999,2]
[392691171,1761816643266,-151.0,0.00014999,2]
[392691172,1761816643276,-165.831271,0.00014999,2]
[392691173,1761816643288,-151.0,0.00014999,2]
[392691174,1761816643300,-151.0,0.00014999,2]
[392691175,1761816643312,-151.0,0.00014999,2]
[392691176,1761816643323,-151.0,0.00014999,2]
[392691177,1761816643338,-151.0,0.00014999,2]
[392691178,1761816643349,-151.0,0.00014999,2]
[392691179,1761816643361,-151.0,0.00014999,2]
[392691180,1761816643372,-151.0,0.00014999,2]
[392691181,1761816643382,-151.0,0.00014999,2]
[392691182,1761816643392,-151.0,0.00014999,2]
[392691183,1761816643402,-171.616614,0.00014999,2]
[392691184,1761816643412,-157.792133,0.00014999,2]
[392691185,1761816643422,-500.0,0.00014999,2]
[392691186,1761816643433,-500.0,0.00014999,2]
[392691187,1761816643446,-500.0,0.00014999,2]
[392691188,1761816643457,-500.0,0.00014999,2]
[392691189,1761816643469,-500.0,0.00014999,2]
[392691190,1761816643479,-236.41154369,0.00014999,2]
[392691191,1761816643490,-151.0,0.00014999,2]
[392691192,1761816643501,-151.0,0.00014999,2]
[392691193,1761816643511,-151.0,0.00014999,2]
[392691194,1761816643521,-151.0,0.00014999,2]
[392691195,1761816643531,-1023.84,0.00014999,2]
[392691196,1761816643542,-1023.84,0.00014999,2]
[392691197,1761816643553,-1023.84,0.00014999,2]
[392691198,1761816643563,-1023.84,0.00014999,2]
[392691199,1761816643573,-1023.84,0.00014999,2]
[392691200,1761816643583,-1023.84,0.00014999,2]
[392691201,1761816643592,-1023.84,0.00014999,2]
[392691202,1761816643602,-1023.84,0.00014999,2]
[392691203,1761816643613,-1023.84,0.00014999,2]
[392691204,1761816643623,-1023.84,0.00014999,2]
[392691205,1761816643633,-1023.84,0.00014999,2]
[392691206,1761816643642,-1023.84,0.00014999,2]
[392691207,1761816643652,-1023.84,0.00014999,2]
[392691208,1761816643662,-1023.84,0.00014999,2]
[392691209,1761816643672,-1023.84,0.00014999,2]
[392691210,1761816643682,-1023.84,0.00014999,2]
[392691211,1761816643692,-1023.84,0.00014999,2]
[392691212,1761816643702,-1023.84,0.00014999,2]
[392691213,1761816643712,-1023.95840673,0.00014999,2]
[392691214,1761816643723,-151.0,0.00014999,2]
[392691215,1761816643734,-153.520169,0.00014999,2]
[392691216,1761816643745,-286.00418,0.00014999,2]
[392691217,1761816643756,-151.0,0.00014999,2]
[392691218,1761816643767,-276.039224,0.00014999,2]
[392691219,1761816643778,-1913773.84654769,0.00015,2]
[392691220,1761816644768,-2480.21370629,0.00015,2]
[392691221,1761816644800,-249.14134,0.0001498,2]
[392691222,1761816644810,-644.387077,0.00015,2]
[392691223,1761816645268,-207.472618,0.0001488,2]
[392691224,1761816645277,-249.14134,0.0001488,2]
[392691225,1761816645286,-249.14134,0.0001498,2]
[392691226,1761816645295,-207.472618,0.0001498,2]
[392691227,1761816645304,-249.14134,0.00014991,2]
[392691228,1761816645312,-249.14134,0.00014991,2]
[392691229,1761816645322,-207.472618,0.00014991,2]
[392691230,1761816645331,-379.55762853,0.00014991,2]
[392691231,1761816645341,-500.0,0.00014998,2]
[392691232,1761816645350,-500.0,0.00014998,2]
[392691233,1761816645359,-500.0,0.00014998,2]
[392691234,1761816645367,-500.0,0.00014998,2]
[392691235,1761816645377,-500.0,0.00014998,2]
[392691236,1761816645386,-500.0,0.00014998,2]
[392691237,1761816645395,-628.52567694,0.00014998,2]
[392691238,1761816645404,-178.24973247,0.00014998,2]
[392691239,1761816645414,-249.14134,0.00014999,2]
[392691240,1761816645422,-249.14134,0.00014999,2]
[392691241,1761816645432,-207.472618,0.00014999,2]
[392691242,1761816645441,-215191.66869018,0.00015,2]
[392691243,1761816645455,-310493.21693909,0.00015,2]
[392691244,1761816645464,-79975.64445922,0.00015,2]
[392691245,1761816645858,-249.14134,0.0001488,2]
[392691246,1761816645868,-54.43092278,0.0001488,2]
[392691254,1761817017406,-587.05516751,0.00013699,2]
[392691255,1761817022503,-180.64996,0.00013699,2]
[392691260,1761817354039,165.75996858,0.000135,2]
[392691265,1761817831900,-32.77487249,0.00013699,2]
[392691266,1761817831910,-320.47697202,0.00013769,2]
[392691267,1761817831921,-1012.97815549,0.0001395,2]
[392691268,1761817831932,-524.19184451,0.0001395,2]
[392691269,1761817831943,-150.0,0.00013967,2]
[392691270,1761817831952,-250.0,0.00013981,2]
[392691271,1761817831962,-997.23439156,0.00014,2]